bitfinex-derivatives/quotes_ETHF0:USTF0_20250123
["timestamp","ask_amount","ask_price","bid_price","bid_amount"]
[1737600320862,0.62154,3220.2,3220.0,0.62157]
[1737600321063,0.62156,3220.1,3219.9,1.11719]
[1737600321263,0.00465549,3220.3,3219.9,0.4956]
[1737600321464,0.62158,3220.0,3219.9,0.4956]
[1737600321662,0.62164,3219.7,3219.6,3.2078]
[1737600321968,3.41698449,3219.9,3219.3,0.4956]
[1737600322266,0.62168,3219.5,3219.3,1.1173]
[1737600322458,3.2078,3219.6,3219.3,0.4956]
[1737600322658,3.82946,3219.6,3219.4,0.62168]
[1737600323053,3.82946,3219.6,3219.3,0.4956]
[1737600323054,0.62169,3219.4,3219.3,0.4956]
[1737600323371,0.6217,3219.4,3219.2,0.62173]
[1737600323568,0.4796,3219.3,3219.2,0.62173]
[1737600323758,1.10131,3219.3,3219.2,0.62173]
[1737600324364,1.10131,3219.3,3219.1,0.00465549]
[1737600324666,1.10131,3219.3,3219.1,0.62639549]
[1737600325167,3.2078,3219.6,3219.1,0.00465549]
[1737600325358,0.62172,3219.3,3219.2,0.62173]
[1737600325559,0.6217,3219.4,3219.3,0.62171]
[1737600326370,1.10498,3219.5,3219.3,0.6217]
[1737600326864,0.62169,3219.4,3219.3,0.6217]
[1737600327065,0.4833,3219.5,3219.1,0.00465549]
[1737600327265,0.62169,3219.4,3219.3,0.62171]
[1737600328968,1.10499,3219.5,3219.3,0.62171]
[1737600329355,1.10499,3219.5,3219.1,0.00465549]
[1737600329356,1.10499,3219.5,3219.4,0.62169]
[1737600329964,0.4833,3219.5,3219.4,0.62169]
[1737600332665,1.10497,3219.5,3219.4,0.62169]
[1737600332875,0.4833,3219.5,3219.1,0.00465549]
[1737600333074,0.4833,3219.5,3219.4,0.62169]
[1737600333467,1.10498,3219.5,3219.3,0.6217]
[1737600333771,0.62173,3219.2,3219.1,0.00465549]
[1737600333964,0.62183,3218.8,3218.6,0.62184]
[1737600334164,2.44408449,3219.0,3218.5,3.2078]
[1737600334362,3.715,3218.7,3218.2,0.4891]
[1737600334571,0.62188,3218.5,3218.2,1.11102]
[1737600334870,0.62188,3218.5,3218.3,0.62191]
[1737600335077,6.16373998,3218.7,3218.3,0.62191]
[1737600335367,0.62187,3218.6,3218.2,0.4891]
[1737600335572,0.00465549,3218.7,3218.6,0.62185]
[1737600335975,0.00465549,3218.7,3218.6,1.12155]
[1737600339675,0.00465549,3218.7,3218.6,41.92155]
[1737600342778,0.00465549,3218.7,3218.6,42.75073233]
[1737600342980,0.00465549,3218.7,3218.6,43.32047169]
[1737600343480,0.00465549,3218.7,3218.6,44.51974962]
[1737600343680,0.00465549,3218.7,3218.6,43.21199307]
[1737600344076,0.00465549,3218.7,3218.6,42.38281074]
[1737600344275,0.00465549,3218.7,3218.6,43.2119922]
[1737600344674,0.00465549,3218.7,3218.6,43.21198919]
[1737600344975,0.00465549,3218.7,3218.6,43.78172693]
[1737600346386,0.00465549,3218.7,3218.6,43.78170221]
[1737600347079,0.5053,3219.4,3218.6,43.78170221]
[1737600347382,1.12796,3219.6,3219.5,0.62167]
[1737600348280,0.5063,3219.6,3219.5,0.62167]
[1737600348483,1.12796,3219.6,3219.5,0.62167]
[1737600349277,0.5063,3219.6,3219.0,3.2078]
[1737600349476,0.62175,3219.1,3219.0,3.2078]
[1737600350180,3.2078,3219.1,3218.5,0.4807]
[1737600350480,5.52566449,3219.0,3218.3,3.2078]
[1737600350669,5.52566449,3219.0,3218.3,3.82969]
[1737600350670,0.62189,3218.5,3218.3,3.82969]
[1737600350876,1.0097,3218.4,3218.3,3.82969]
[1737600351279,0.4883,3218.4,3218.3,3.82969]
[1737600351584,1.1432,3218.9,3218.8,0.62181]
[1737600351883,4.33656,3219.1,3218.9,0.62177]
[1737600352179,3.7148,3219.1,3218.5,1.55468]
[1737600352381,3.7148,3219.1,3219.0,0.62177]
[1737600353884,3.2078,3219.1,3219.0,0.62177]
[1737600354076,1.0388,3219.5,3219.0,0.62177]
[1737600354077,1.0327,3219.5,3219.0,2.44408449]
[1737600354277,1.0327,3219.5,3219.4,0.62169]
[1737600354487,0.5113,3219.5,3219.4,0.62169]
[1737600355685,1.13297,3219.5,3219.4,0.62169]
[1737600355985,0.5113,3219.5,3219.4,0.62169]
[1737600356681,0.5113,3219.5,3219.2,0.62173]
[1737600356881,0.5113,3219.5,3219.1,3.7322]
[1737600357483,0.5113,3219.5,3219.1,4.35394]
[1737600357684,0.62173,3219.2,3219.1,4.35394]
[1737600357881,0.62173,3219.2,3219.1,3.2078]
[1737600358279,0.62175,3219.1,3219.0,0.62176]
[1737600358485,1.14325,3219.1,3219.0,0.62176]
[1737600358782,0.5113,3219.5,3219.0,2.44408449]
[1737600358986,0.6217,3219.4,3219.2,0.62172]
[1737600359184,1.0202,3219.5,3219.2,0.62172]
[1737600359577,0.62171,3219.3,3219.1,0.62174]
[1737600359890,0.62171,3219.3,3219.2,0.62173]
[1737600360189,0.62171,3219.4,3219.1,0.62173]
[1737600360384,1.0202,3219.5,3218.8,0.4908]
[1737600360592,1.64189,3219.5,3219.3,0.62171]
[1737600361084,1.0202,3219.5,3219.3,0.62171]
[1737600361282,1.64188,3219.5,3219.3,0.62171]
[1737600361482,1.64188,3219.5,3219.2,0.62172]
[1737600361788,1.64188,3219.5,3219.0,2.44408449]
[1737600361789,1.0202,3219.5,3219.0,2.44408449]
[1737600361985,1.0202,3219.5,3219.1,0.62175]
[1737600362182,0.62172,3219.3,3219.0,0.62175]
[1737600362382,0.62172,3219.3,3218.8,0.4908]
[1737600362583,0.62176,3219.1,3218.8,0.62181]
[1737600362785,0.62176,3219.1,3218.9,0.62179]
[1737600363085,1.14328,3219.0,3218.8,0.62179]
[1737600363287,0.4983,3218.9,3218.8,0.62179]
[1737600364186,0.62183,3218.7,3218.6,3.2078]
[1737600364389,0.62186,3218.6,3218.4,0.62188]
[1737600364583,0.4835,3218.8,3218.4,40.8]
[1737600364783,1.14337,3218.5,3218.4,40.8]
[1737600365285,1.14338,3218.5,3218.1,3.2078]
[1737600365476,1.14338,3218.5,3218.3,0.62189]
[1737600365787,0.4835,3218.8,3218.3,40.8]
[1737600365989,0.4835,3218.8,3218.7,0.62183]
[1737600366789,0.4983,3218.9,3218.4,1.0112]
[1737600366790,0.4983,3218.9,3218.8,0.62181]
[1737600368089,0.4983,3218.9,3218.4,0.5155]
[1737600368289,3.82966,3218.6,3218.4,0.62187]
[1737600368491,0.5082,3218.5,3218.3,40.8]
[1737600368695,1.0242,3218.5,3218.4,0.62189]
[1737600369596,1.0242,3218.5,3218.3,0.6219]
[1737600369991,0.6219,3218.4,3218.2,41.42192]
[1737600370299,0.62193,3218.2,3218.0,0.62661549]
[1737600370897,0.4794,3218.3,3218.2,0.62193]
[1737600371197,3.2078,3219.0,3218.2,2.44408449]
[1737600371391,0.4794,3218.7,3218.6,0.62185]
[1737600371787,0.4794,3218.7,3218.4,0.62188]
[1737600371987,0.4794,3218.7,3218.1,3.7066]
[1737600372195,0.4794,3218.7,3218.6,3.06593449]
[1737600372495,0.4803,3219.0,3218.9,0.62179]
[1737600373187,3.6881,3219.0,3218.3,2.44408449]
[1737600373401,4.30988,3219.0,3218.7,0.62182]
[1737600373599,3.6881,3219.0,3218.8,0.6218]
[1737600373897,3.6881,3219.0,3218.9,0.62179]
[1737600374597,3.2078,3219.0,3218.9,0.62179]
[1737600375397,0.4794,3219.2,3219.1,0.62175]
[1737600375795,3.2078,3219.4,3219.3,0.62171]
[1737600376997,3.2078,3219.4,3219.3,3.06579449]
[1737600377199,0.5287,3219.7,3219.6,0.62166]
[1737600378203,0.5287,3219.7,3219.5,0.62167]
[1737600378401,3.2078,3219.6,3219.5,0.62167]
[1737600379401,0.00465549,3219.9,3219.3,2.44408449]
[1737600379602,0.00465549,3219.9,3219.8,3.06570449]
[1737600380702,0.00465549,3219.9,3219.8,3.42180488]
[1737600381306,0.00465549,3219.9,3219.8,3.06570449]
[1737600381902,0.00465549,3219.9,3219.8,3.42163034]
[1737600382206,0.00465549,3219.9,3219.8,3.06570449]
[1737600382403,0.4971,3220.7,3219.8,7.7998625]
[1737600382601,0.4866,3221.1,3220.4,2.44408449]
[1737600382905,0.62139,3221.0,3220.8,0.62141]
[1737600383101,0.48,3220.9,3220.8,0.62142]
[1737600383408,3.6878,3220.9,3220.6,40.8]
[1737600383598,0.4929,3220.8,3220.5,0.00465549]
[1737600383797,0.62147,3220.6,3220.5,0.00465549]
[1737600386503,3.6878,3220.9,3220.5,0.00465549]
[1737600386699,3.6878,3220.9,3220.5,1.12392549]
[1737600386900,4.30921,3220.9,3220.5,1.12392549]
[1737600387408,3.6878,3220.9,3220.6,0.62145]
[1737600387799,3.6878,3220.9,3220.6,0.62146]
[1737600388607,3.6878,3220.9,3220.7,0.62142]
[1737600390403,3.6878,3220.9,3220.8,0.62142]
[1737600391510,0.48,3220.9,3220.8,0.62142]
[1737600391914,0.4866,3221.1,3220.6,0.4799]
[1737600392212,1.10797,3221.1,3220.8,0.62141]
[1737600392403,0.4866,3221.1,3220.9,0.62139]
[1737600392601,0.00465549,3221.2,3221.1,0.62137]
[1737600393111,3.6869,3221.9,3221.8,0.62123]
[1737600393913,3.6869,3221.9,3221.0,3.2078]
[1737600394120,0.62127,3221.6,3221.2,0.62134]
[1737600394712,0.4834,3221.5,3220.9,40.8]
[1737600395115,0.4834,3221.5,3221.3,0.62131]
[1737600395515,0.4834,3221.5,3221.2,0.62134]
[1737600395818,0.4834,3221.5,3221.3,0.62132]
[1737600396111,0.4834,3221.5,3221.4,0.62131]
[1737600396911,0.4834,3221.5,3221.1,2.44408449]
[1737600397112,0.4834,3221.5,3221.3,0.62131]
[1737600397315,1.1047,3221.5,3221.2,0.62133]
[1737600397817,0.4834,3221.5,3221.3,0.62131]
[1737600398021,0.4834,3221.5,3221.4,0.62131]
[1737600398515,0.4834,3221.5,3221.3,0.62132]
[1737600398812,0.4834,3221.5,3221.4,0.62131]
[1737600399109,4.30812,3221.9,3221.6,0.62126]
[1737600399318,0.5172,3221.8,3221.6,0.62126]
[1737600399817,3.6869,3221.9,3221.8,0.62123]
[1737600400000,3.6869,3221.9,3221.2,4.76117]
[1737600400001,3.6869,3221.9,3221.7,0.62124]
[1737600400201,3.6869,3221.9,3221.8,0.62123]
[1737600400606,4.30812,3221.9,3221.2,4.76117]
[1737600400809,4.30812,3221.9,3221.6,0.62126]
[1737600401009,0.62124,3221.8,3221.6,0.62126]
[1737600401628,0.62124,3221.8,3221.5,0.62128]
[1737600402011,3.6869,3221.9,3221.5,0.62128]
[1737600402310,0.62125,3221.7,3221.5,0.62128]
[1737600403010,3.6869,3221.9,3221.8,0.62123]
[1737600403222,0.5172,3222.1,3221.7,2.44408449]
[1737600403409,0.5172,3222.1,3221.9,0.6212]
[1737600403917,1.13837,3222.1,3221.9,0.6212]
[1737600404416,0.00465549,3222.2,3222.1,0.62117]
[1737600405217,0.00465549,3222.2,3222.1,1.12567]
[1737600408520,3.2078,3223.2,3222.1,5.5045]
[1737600408714,3.2078,3223.2,3223.1,0.62098]
[1737600409016,3.2078,3223.2,3222.8,2.44408449]
[1737600409218,3.2078,3223.2,3222.6,40.8]
[1737600409418,0.4801,3223.1,3222.4,3.2078]
[1737600409621,0.62106,3222.7,3222.4,3.8289]
[1737600409820,0.62106,3222.7,3222.6,0.00465549]
[1737600410808,0.05242132,3222.7,3221.6,2.44408449]
[1737600411010,0.62108,3222.6,3222.2,0.62114]
[1737600411213,0.62109,3222.6,3221.9,2.44408449]
[1737600411412,1.1118,3222.5,3222.1,0.62116]
[1737600411612,0.62115,3222.2,3222.0,0.4947]
[1737600411817,0.62116,3222.2,3222.0,0.4947]
[1737600412015,3.2078,3222.4,3222.0,0.4947]
[1737600412517,4.34121,3223.0,3222.6,0.62106]
[1737600412711,3.82881,3223.0,3222.7,0.62106]
[1737600413014,3.2078,3223.0,3222.8,0.62103]
[1737600413209,3.2078,3223.0,3222.5,2.44408449]
[1737600413419,3.82881,3223.0,3222.7,0.62105]
[1737600413619,3.2078,3223.0,3222.6,0.4947]
[1737600413820,3.2078,3223.0,3222.8,0.62102]
[1737600414020,3.2078,3223.0,3222.8,2.44408449]
[1737600414216,3.2078,3223.0,3222.9,0.62102]
[1737600414421,3.2078,3223.0,3222.6,0.4947]
[1737600414621,3.2078,3223.0,3222.9,0.62102]
[1737600417026,0.00465549,3223.2,3223.1,0.62098]
[1737600417328,0.00465549,3223.2,3223.0,0.62098]
[1737600417723,0.00465549,3223.2,3223.0,40.8]
[1737600417924,0.00465549,3223.2,3222.7,3.2078]
[1737600418317,0.62099,3223.1,3222.9,0.62101]
[1737600418523,0.62102,3222.9,3222.7,3.82885]
[1737600418825,0.62101,3223.0,3222.8,0.62104]
[1737600419020,0.4858,3222.9,3222.8,0.62104]
[1737600419931,1.10682,3222.9,3222.7,3.82885]
[1737600420121,0.4858,3222.9,3222.7,3.2078]
[1737600420427,0.62104,3222.8,3222.7,3.2078]
[1737600420628,1.14474,3222.8,3222.7,3.2078]
[1737600421924,8.7315,3222.8,3222.1,0.5079]
[1737600422126,3.2078,3222.3,3222.1,0.5079]
[1737600422331,0.4961,3222.2,3222.0,40.8]
[1737600422728,0.62117,3222.1,3222.0,40.8]
[1737600423030,0.62117,3222.1,3221.9,0.00465549]
[1737600423031,0.62119,3222.0,3221.9,0.00465549]
[1737600423231,1.7043681,3222.0,3221.9,0.00465549]
[1737600423528,1.70436769,3222.0,3221.9,0.00465549]
[1737600423922,6.70436769,3222.0,3221.9,0.00465549]
[1737600424529,1.70436769,3222.0,3221.9,0.00465549]
[1737600425223,1.70436176,3222.0,3221.9,0.00465549]
[1737600425619,1.55304,3221.9,3220.9,3.2078]
[1737600425924,3.2078,3221.4,3220.9,3.2078]
[1737600426131,0.62139,3221.0,3220.9,3.2078]
[1737600426422,1.0179,3221.3,3220.7,40.8]
[1737600426624,0.62142,3220.8,3220.7,40.80465549]
[1737600426925,0.62142,3220.8,3220.7,0.00465549]
[1737600428027,0.67389013,3220.8,3220.7,0.00465549]
[1737600428631,0.62142,3220.8,3220.7,0.00465549]
[1737600428934,0.67388848,3220.8,3220.7,0.00465549]
[1737600429229,3.2078,3221.0,3220.8,0.62142]
[1737600429430,0.6214,3221.0,3220.7,0.00465549]
[1737600429832,1.54445549,3221.3,3220.7,0.00465549]
[1737600430028,3.2078,3220.9,3220.7,0.00465549]
[1737600430431,0.62142,3220.8,3220.7,0.00465549]
[1737600431928,0.67391565,3220.8,3220.7,0.00465549]
[1737600433623,5.67391565,3220.8,3220.7,0.00465549]
[1737600433828,5.67391565,3220.8,3219.4,3.2078]
[1737600433829,8.00248956,3220.8,3219.4,3.2078]
[1737600434032,1.55348,3221.0,3219.4,3.82949]
[1737600434033,0.62162,3219.8,3219.4,3.82949]
[1737600434228,0.62162,3219.8,3219.5,40.8]
[1737600434628,0.5102,3219.9,3219.5,40.8]
[1737600434829,0.62164,3219.7,3219.5,40.8]
[1737600435030,0.62166,3219.6,3219.5,40.8]
[1737600435429,0.5102,3219.9,3219.5,40.8]
[1737600435628,0.62164,3219.7,3219.5,40.8]
[1737600435829,0.62164,3219.7,3219.4,0.00465549]
[1737600436232,0.5102,3219.9,3219.4,40.80465549]
[1737600436434,0.62164,3219.7,3219.4,40.80465549]
[1737600436836,0.62162,3219.8,3219.4,41.42633549]
[1737600437035,0.62163,3219.8,3219.4,40.80465549]
[1737600437438,1.1318,3219.9,3219.5,0.62167]
[1737600437932,1.13181,3219.9,3219.5,0.62167]
[1737600438433,1.13181,3219.9,3219.4,40.80465549]
[1737600438635,0.5102,3219.9,3219.4,40.80465549]
[1737600438835,3.82939,3220.0,3219.6,0.62164]
[1737600439431,3.82939,3220.0,3219.4,40.80465549]
[1737600439628,3.82939,3220.0,3219.7,0.62163]
[1737600439834,0.6216,3219.9,3219.6,0.62165]
[1737600440025,0.6216,3219.9,3219.5,1.12667]
[1737600440230,0.62162,3219.8,3219.5,1.12667]
[1737600440435,0.62162,3219.8,3219.5,0.505]
[1737600440626,3.2078,3220.0,3219.4,40.80465549]
[1737600440936,0.62167,3219.5,3219.4,40.80465549]
[1737600443030,3.2078,3220.0,3219.4,40.80465549]
[1737600443339,0.6216,3219.9,3219.4,41.42633549]
[1737600443533,0.62166,3219.6,3219.4,40.80465549]
[1737600443735,0.62167,3219.5,3219.4,40.80465549]
[1737600443937,0.62167,3219.6,3219.4,40.80465549]
[1737600444136,0.62167,3219.5,3219.4,40.80465549]
[1737600444538,3.2078,3220.0,3219.4,40.80465549]
[1737600444742,3.2078,3220.0,3219.4,0.00465549]
[1737600444944,3.82938,3220.0,3219.7,0.62162]
[1737600445241,3.82938,3220.0,3219.9,0.6216]
[1737600445242,3.2078,3220.0,3219.9,0.6216]
[1737600445444,3.2078,3220.4,3219.8,1.0266]
[1737600445743,3.2078,3220.8,3219.8,5.54671394]
[1737600445942,3.2078,3220.8,3220.7,0.62144]
[1737600446236,3.2078,3220.8,3220.2,2.96608394]
[1737600446443,3.21245549,3221.3,3220.3,0.5186]
[1737600446740,0.62142,3220.9,3220.6,0.62146]
[1737600447343,0.62141,3220.9,3220.6,0.62145]
[1737600447542,3.21245549,3221.3,3220.3,0.5186]
[1737600447739,0.05247363,3221.2,3220.5,0.62147]
[1737600447935,0.62142,3220.9,3220.6,0.5088]
[1737600448141,0.62142,3220.9,3220.6,1.0289]
[1737600448536,0.62142,3220.9,3220.6,1.65035]
[1737600448735,0.62143,3220.8,3220.6,1.0289]
[1737600449135,0.62142,3220.8,3220.6,1.65036]
[1737600449341,3.82922,3220.9,3220.6,1.65035]
[1737600449545,0.62143,3220.8,3220.6,1.0289]
[1737600450041,3.82921,3220.9,3220.6,1.65036]
[1737600450241,0.62143,3220.8,3220.6,1.0289]
[1737600450439,3.82921,3220.9,3220.6,1.65035]
[1737600450947,0.62143,3220.8,3220.6,1.0289]
[1737600451747,0.62144,3220.7,3220.6,1.0289]
[1737600453344,0.62154,3220.2,3219.7,5.91008005]
[1737600453540,0.00465549,3221.3,3219.7,5.91008005]
[1737600453541,0.6216,3219.9,3219.8,0.5227]
[1737600453845,3.2078,3220.5,3219.8,0.5227]
[1737600454045,3.2078,3220.5,3219.9,0.62159]
[1737600454046,0.62155,3220.2,3219.9,0.62159]
[1737600454242,3.2078,3220.5,3219.8,0.5227]
[1737600454442,0.6216,3219.9,3219.8,0.5227]
[1737600455546,3.2078,3220.1,3219.5,1.0162]
[1737600455751,0.62166,3219.6,3219.5,0.5047]
[1737600455946,3.2078,3220.1,3219.5,0.5047]
[1737600456146,0.62166,3219.6,3219.5,0.5047]
[1737600456452,0.62165,3219.7,3219.5,0.5047]
[1737600456856,0.62166,3219.6,3219.5,0.5047]
[1737600457156,3.2078,3220.1,3219.4,2.45160193]
[1737600457157,0.62167,3219.5,3219.4,0.00465549]
[1737600458651,4.7404,3220.1,3219.4,2.45160193]
[1737600458652,3.7119,3220.1,3219.4,2.45160193]
[1737600458852,3.2078,3220.5,3219.8,2.44694644]
[1737600459053,3.2078,3220.5,3220.1,2.44694644]
[1737600459254,3.2078,3220.5,3220.4,0.6215]
[1737600459455,0.62145,3220.7,3220.4,40.8]
[1737600459759,0.486,3220.9,3220.7,0.62144]
[1737600459953,3.2078,3221.0,3220.4,43.24694644]
[1737600460354,3.82919,3221.0,3220.6,0.62145]
[1737600460554,3.82919,3221.0,3220.7,0.62143]
[1737600460750,0.4852,3221.2,3220.7,0.62143]
[1737600460751,0.00465549,3221.3,3221.2,0.62135]
[1737600461252,0.00465549,3221.3,3221.2,1.44139405]
[1737600461454,3.2078,3221.9,3221.2,1.38886926]
[1737600461658,0.62121,3222.0,3221.6,0.62126]
[1737600461858,0.5208,3222.2,3221.8,0.62121]
[1737600461859,1.14196,3222.2,3221.8,0.62121]
[1737600462070,0.6212,3222.0,3221.6,0.62127]
[1737600462268,0.5208,3222.2,3221.6,0.62127]
[1737600462457,0.5208,3222.2,3221.5,40.8]
[1737600462664,0.00465549,3222.2,3221.9,0.6212]
[1737600463062,0.00465549,3222.2,3221.6,0.00465549]
[1737600463266,0.00465549,3222.2,3222.0,0.62118]
[1737600464072,0.00465549,3222.2,3221.8,3.2078]
[1737600464264,0.00465549,3222.2,3222.1,0.62117]
[1737600464872,0.00465549,3222.2,3222.1,3.58431582]
[1737600466070,0.00465549,3222.2,3222.1,0.62117]
[1737600468171,0.00465549,3222.2,3222.1,8.58431582]
[1737600468468,0.62097,3223.2,3222.2,2.17404]
[1737600468676,0.62097,3223.2,3222.9,3.82882]
[1737600468966,0.621,3223.1,3222.7,0.62105]
[1737600469164,0.621,3223.1,3222.5,6.17094582]
[1737600469165,0.621,3223.1,3222.8,0.62103]
[1737600469566,0.00465549,3223.3,3222.5,6.17094582]
[1737600469764,0.00465549,3223.3,3222.8,0.62103]
[1737600469967,0.62098,3223.1,3222.8,0.62103]
[1737600470168,0.62097,3223.2,3222.8,0.62103]
[1737600470367,0.00465549,3223.3,3222.5,46.97094582]
[1737600470572,0.62101,3223.0,3222.6,0.62107]
[1737600471075,0.62099,3223.1,3222.7,0.62104]
[1737600471276,0.62099,3223.1,3222.5,6.17094582]
[1737600471574,0.62097,3223.2,3222.8,0.62102]
[1737600472369,0.62560549,3223.3,3222.9,0.62102]
[1737600472677,0.00465549,3223.3,3222.5,6.17094582]
[1737600473076,0.62560549,3223.3,3222.9,0.62101]
[1737600473377,0.00465549,3223.3,3222.9,3.2078]
[1737600473878,0.00465549,3223.3,3223.2,0.62096]
[1737600474967,0.00465549,3223.3,3223.2,41.42096]
[1737600475877,0.62077,3224.2,3223.2,45.8]
[1737600476078,0.62077,3224.2,3224.0,0.6208]
[1737600476379,0.62079,3224.1,3223.9,0.62082]
[1737600476577,0.62079,3224.1,3223.8,0.62084]
[1737600476974,0.62079,3224.1,3223.7,3.2078]
[1737600477375,0.00465549,3224.3,3223.7,3.2078]
[1737600477376,0.62078,3224.2,3223.9,0.62081]
[1737600477576,0.00465549,3224.3,3223.7,3.2078]
[1737600477875,0.62078,3224.2,3224.0,0.6208]
[1737600478080,0.62078,3224.2,3223.9,0.62081]
[1737600478380,0.00465549,3224.3,3223.7,3.2078]
[1737600478581,0.00465549,3224.3,3224.0,0.6208]
[1737600478885,0.62078,3224.2,3224.0,0.6208]
[1737600479076,0.62541549,3224.3,3224.0,0.6208]
[1737600479378,0.00465549,3224.3,3224.1,0.62078]
[1737600479580,0.00465549,3224.3,3223.7,3.696]
[1737600479778,0.00465549,3224.3,3224.2,0.62077]
[1737600481175,0.00465549,3224.3,3224.2,3.82857]
[1737600481680,0.00465549,3224.3,3224.2,44.0078]
[1737600481884,0.62540549,3224.3,3224.2,44.0078]
[1737600482073,0.62540549,3224.3,3224.2,3.2078]
[1737600482479,0.00465549,3224.3,3223.8,3.2078]
[1737600482885,0.62082,3224.0,3223.8,3.2078]
[1737600483086,0.62083,3223.9,3223.8,3.2078]
[1737600484174,0.4955,3224.2,3223.6,0.00465549]
[1737600484377,0.62086,3223.7,3223.6,0.00465549]
[1737600484577,0.62085,3223.8,3223.6,0.00465549]
[1737600485076,0.4955,3224.2,3223.6,0.00465549]
[1737600485474,0.62083,3223.9,3223.7,0.62086]
[1737600485879,0.62085,3223.8,3223.6,0.62552549]
[1737600486385,0.62084,3223.9,3223.6,0.62552549]
[1737600486879,0.4955,3224.2,3223.7,0.62086]
[1737600487078,0.4955,3224.2,3223.6,0.00465549]
[1737600487279,0.62082,3224.0,3223.7,0.62085]
[1737600487478,0.62082,3224.0,3223.8,3.82864]
[1737600487679,0.62082,3224.0,3223.8,3.2078]
[1737600487880,0.62084,3223.9,3223.6,0.62553549]
[1737600488279,0.62084,3223.9,3223.7,41.42086]
[1737600489183,0.4955,3224.2,3223.7,40.8]
[1737600489383,0.62081,3224.0,3223.8,3.82865]
[1737600489784,0.62081,3224.1,3223.9,0.62082]
[1737600490081,0.4955,3224.2,3223.8,3.82863]
[1737600490082,0.62082,3224.0,3223.8,3.82863]
[1737600490475,0.62082,3224.0,3223.8,3.2078]
[1737600490681,0.62082,3224.0,3223.8,3.82864]
[1737600491083,0.4955,3224.2,3223.8,3.2078]
[1737600491282,0.62541549,3224.3,3224.1,0.62078]
[1737600491479,0.00465549,3224.3,3224.2,0.62077]
[1737600491687,0.62540549,3224.3,3224.1,0.62078]
[1737600491984,0.00465549,3224.3,3223.8,3.2078]
[1737600492288,0.62541549,3224.3,3224.1,0.62078]
[1737600492681,0.00465549,3224.3,3223.8,3.2078]
[1737600492888,0.00465549,3224.3,3224.2,0.62077]
[1737600493291,0.62540549,3224.3,3224.2,0.62077]
[1737600493492,0.00465549,3224.3,3224.2,0.62077]
[1737600493784,0.00465549,3224.3,3224.2,3.82857]
[1737600494197,0.00465549,3224.3,3224.2,4.65205904]
[1737600494379,0.00465549,3224.3,3224.2,45.45205904]
[1737600495187,0.00465549,3224.3,3224.2,50.45205904]
[1737600495397,0.00465549,3224.3,3224.2,49.62857]
[1737600495691,0.00465549,3224.3,3224.2,54.72745256]
[1737600495893,0.00465549,3224.3,3224.2,55.17438656]
[1737600496089,0.00465549,3224.3,3224.2,53.85664609]
[1737600496296,0.00465549,3224.3,3224.2,53.85670417]
[1737600496486,0.00465549,3224.3,3224.2,55.17463217]
[1737600497292,0.00465549,3224.3,3224.2,50.17463217]
[1737600497496,0.00465549,3224.3,3224.2,50.17492023]
[1737600497896,0.00465549,3224.3,3224.2,48.0330642]
[1737600498096,0.00465549,3224.3,3224.2,50.17504787]
[1737600499096,0.00465549,3224.3,3224.2,55.17504787]
[1737600499599,0.00465549,3224.3,3224.2,48.85705068]
[1737600499899,0.62065,3224.8,3224.6,0.62068]
[1737600500097,0.62065,3224.8,3224.6,3.82848]
[1737600500498,0.62065,3224.8,3224.7,0.62067]
[1737600500700,0.5301,3225.2,3224.7,0.62067]
[1737600500999,0.62063,3225.0,3224.9,0.62063]
[1737600501299,0.62063,3225.0,3224.8,0.62064]
[1737600501599,0.62367392,3225.1,3224.9,0.62062]
[1737600501790,0.62063,3225.0,3224.8,0.62064]
[1737600502098,0.00307392,3225.1,3224.6,3.2078]
[1737600502099,0.62064,3224.9,3224.6,3.2078]
[1737600502301,0.62064,3224.9,3224.7,0.82479346]
[1737600502492,0.62064,3224.9,3224.7,0.62067]
[1737600502998,0.62075,3224.3,3224.2,44.62856]
[1737600503194,0.62075,3224.3,3224.2,4.0326721]
[1737600503390,0.62075,3224.3,3224.2,3.2078]
[1737600503997,2.59157,3224.8,3223.8,3.2078]
[1737600504198,0.62082,3224.0,3223.9,0.82572483]
[1737600504793,0.6208,3224.1,3223.9,0.97646295]
[1737600505100,0.6208,3224.1,3224.0,0.35565295]
[1737600505597,0.4956,3224.5,3223.8,3.2078]
[1737600505795,0.6208,3224.1,3223.9,0.62082]
[1737600506100,0.62081,3224.0,3223.9,0.62082]
[1737600506297,0.62079,3224.1,3224.0,0.6208]
[1737600506493,0.62079,3224.1,3224.0,0.97647767]
[1737600506698,0.62079,3224.1,3223.9,0.62081]
[1737600506899,0.4817,3224.0,3223.9,0.62081]
[1737600507199,0.4817,3224.0,3223.9,0.97167452]
[1737600507504,0.4817,3224.0,3223.9,0.62081]
[1737600507998,0.62074,3224.4,3223.9,0.35086683]
[1737600508200,1.14004,3224.4,3224.0,0.35086683]
[1737600508398,1.14004,3224.4,3224.3,0.62075]
[1737600508795,0.62076,3224.3,3224.1,0.62078]
[1737600508998,0.5193,3224.4,3224.2,0.62077]
[1737600509187,1.14004,3224.4,3224.2,0.61937366]
[1737600510201,0.62075,3224.3,3224.2,0.61937366]
[1737600511310,0.62083,3223.9,3223.8,3.2078]
[1737600511798,0.62086,3223.7,3223.6,0.00465549]
[1737600512189,0.62098,3223.1,3222.9,3.82882]
[1737600512390,6.6740602,3223.6,3223.0,40.8]
[1737600512596,0.62098,3223.1,3222.9,3.2078]
[1737600512791,0.621,3223.0,3222.9,3.2078]
[1737600513198,0.621,3223.0,3222.3,0.62112]
[1737600513199,0.62109,3222.6,3222.4,3.2078]
[1737600513701,0.62109,3222.6,3222.5,40.8]
[1737600514107,0.62106,3222.8,3222.5,40.8]
[1737600514300,3.2078,3223.1,3222.6,0.62106]
[1737600514301,0.621,3223.0,3222.6,0.62106]